bitfinex/quotes_ETHUSD_20251008
["timestamp","ask_amount","ask_price","bid_price","bid_amount"]
[1759904930138,0.112,4448.3,4448.2,2.546]
[1759904930679,0.114,4448.3,4448.2,2.546]
[1759904934964,0.4748,4448.3,4448.2,2.546]
[1759904935144,0.3249809,4448.3,4448.2,2.546]
[1759904935339,0.114,4448.3,4448.2,2.546]
[1759904936149,0.4748,4448.3,4448.2,2.546]
[1759904936340,0.6857809,4448.3,4448.2,2.546]
[1759904936535,0.6857809,4448.3,4448.0,0.001]
[1759904936732,0.4748,4448.3,4448.1,2.546]
[1759904937771,0.114,4448.3,4448.1,2.546]
[1759904937937,0.32498581,4448.3,4448.1,2.546]
[1759904938133,0.114,4448.3,4448.1,2.546]
[1759904938739,0.114,4448.3,4448.0,0.001]
[1759904938940,0.114,4448.3,4448.1,2.545]
[1759904941965,0.3249869,4448.3,4448.1,2.545]
[1759904942271,0.114,4448.3,4448.1,2.545]
[1759904943070,0.114,4448.3,4448.1,3.0186]
[1759904943583,0.114,4448.3,4448.1,3.0410815]
[1759904943871,0.114,4448.3,4448.1,2.5674815]
[1759904944173,0.114,4448.3,4448.1,4.81562445]
[1759904944368,0.114,4448.3,4448.1,4.79314295]
[1759904945966,0.114,4448.3,4448.2,2.24810035]
[1759904946279,0.114,4448.3,4448.1,4.79314431]
[1759904946944,0.002,4448.3,4448.2,2.74418135]
[1759904947354,0.002,4448.3,4448.2,2.85618135]
[1759904948961,0.002,4448.3,4448.2,17.35618135]
[1759904949263,0.002,4448.3,4448.2,17.33370035]
[1759904954295,0.002,4448.8,4448.2,17.33370035]
[1759904954296,0.002,4448.8,4448.7,2.24784768]
[1759904954470,0.002,4448.8,4448.7,9.06419371]
[1759904954667,0.002,4448.8,4448.7,9.53779371]
[1759904954872,0.002,4448.8,4448.7,24.03779371]
[1759904955994,1e-08,4448.9,4448.8,2.24779715]
[1759904956177,1e-08,4448.9,4448.8,2.74387512]
[1759904956377,0.01,4450.9,4449.8,6.18185327]
[1759904956378,0.112,4450.6,4449.8,6.18185327]
[1759904956578,0.112,4450.6,4449.8,8.72685327]
[1759904956777,0.01,4450.9,4449.8,9.31245327]
[1759904957087,0.112,4450.8,4449.8,23.81245327]
[1759904958603,0.01,4450.9,4449.8,23.81245327]
[1759904962500,0.01,4450.9,4449.8,24.25580024]
[1759904963186,0.01,4450.9,4449.9,2.24724151]
[1759904963391,0.01,4450.9,4450.5,3.93456126]
[1759904963581,0.01,4450.9,4450.7,2.24683757]
[1759904963781,0.01,4450.9,4450.8,2.24678709]
[1759904963982,0.01,4450.9,4450.8,5.36968709]
[1759904964284,0.01,4450.9,4450.8,19.86968709]
[1759904965375,0.01,4450.9,4450.8,19.29078709]
[1759904965787,0.012,4450.9,4450.8,19.29078709]
[1759904965993,0.012,4450.9,4450.8,19.75768709]
[1759904966394,0.012,4450.9,4450.8,5.25768709]
[1759904976335,0.3728,4450.9,4450.6,0.112]
[1759904976533,0.4728,4450.8,4450.7,1.746]
[1759904976918,0.112,4450.8,4450.7,1.746]
[1759904977294,0.112,4450.8,4450.7,3.99283757]
[1759904982745,0.112,4450.8,4450.5,14.5]
[1759904982927,0.112,4450.8,4448.8,2.24876139]
[1759904982928,0.3608,4450.7,4448.9,3.93456126]
[1759904983238,0.3608,4450.7,4449.5,2.24742812]
[1759904983239,0.112,4450.1,4449.5,2.24742812]
[1759904983395,0.112,4450.1,4449.4,0.112]
[1759904983396,0.3608,4450.0,4449.6,4.79039118]
[1759904983729,0.3608,4450.0,4449.7,4.79031689]
[1759904984028,0.3608,4450.0,4449.8,2.543]
[1759904984602,0.3608,4450.0,4449.6,2.24738724]
[1759904984804,0.3608,4450.0,4449.7,2.543]
[1759904985213,0.112,4450.1,4449.6,2.24738724]
[1759904985214,0.6336,4450.5,4449.6,2.24738485]
[1759904985419,2.13028442,4450.4,4449.7,4.79032928]
[1759904985613,0.3608,4450.4,4449.8,2.543]
[1759904985812,0.3608,4450.4,4449.9,2.2472322]
[1759904986025,0.67550147,4450.6,4449.9,2.2472322]
[1759904986026,0.67550147,4450.6,4450.1,2.24713898]
[1759904986217,0.112,4450.2,4450.1,2.24713898]
[1759904986426,0.112,4450.2,4450.1,4.79013898]
[1759904987821,0.112,4450.2,4450.1,5.22513898]
[1759904988035,0.112,4450.2,4450.1,4.79013898]
[1759904992252,0.112,4450.2,4450.1,2.543]
[1759904992655,0.112,4450.2,4450.1,4.79014051]
[1759904993035,0.112,4450.2,4450.1,2.543]
[1759904993435,0.112,4450.2,4450.1,4.79014051]
[1759904994053,0.112,4450.2,4450.1,2.543]
[1759904994362,0.4728,4450.2,4450.1,2.543]
[1759904998162,0.112,4450.2,4450.1,2.543]
[1759905000167,0.112,4450.2,4449.9,2.24723446]
[1759905000369,0.112,4450.2,4450.0,2.543]
[1759905000571,0.3608,4450.1,4449.7,14.5]
[1759905000879,0.112,4449.7,4449.2,2.24756306]
[1759905001060,0.112,4449.7,4449.3,2.543]
[1759905001261,0.112,4449.7,4449.3,17.043]
[1759905001570,0.112,4449.7,4449.6,2.24739302]
[1759905001886,0.112,4449.7,4449.6,4.79039302]
[1759905002569,0.3608,4450.7,4450.0,2.24714918]
[1759905002777,4.16879029,4450.8,4450.0,2.24714918]
[1759905002778,0.112,4450.2,4450.1,2.24714051]
[1759905002948,0.114,4450.2,4450.1,2.26961191]
[1759905003153,0.114,4450.2,4450.1,2.72001191]
[1759905004273,0.002,4450.2,4450.1,2.72001191]
[1759905004472,0.002,4450.2,4450.1,2.83401191]
[1759905004867,0.002,4450.2,4450.1,17.33401191]
[1759905005068,0.002,4450.2,4450.1,19.23154051]
[1759905005453,0.002,4450.8,4450.7,2.24683757]
[1759905005773,0.002,4450.8,4450.7,7.96766008]
[1759905005973,0.002,4450.8,4450.7,7.94519171]
[1759905006168,0.002,4450.8,4450.7,8.39559171]
[1759905006349,0.002,4450.8,4450.7,22.89559171]
[1759905006878,0.002,4450.8,4450.7,20.35259171]
[1759905007079,0.002,4450.8,4450.7,14.5]
[1759905007374,0.002,4450.8,4450.7,17.043]
[1759905007942,0.002,4450.8,4449.8,0.09004557]
[1759905008146,2.2808,4450.7,4449.3,0.001]
[1759905008347,3.05049243,4450.7,4449.4,2.543]
[1759905008558,0.3608,4450.6,4449.5,16.92741761]
[1759905008785,0.3608,4450.6,4449.7,2.24729548]
[1759905008953,0.3608,4450.6,4449.8,2.543]
[1759905009164,2.60769389,4450.6,4449.8,2.543]
[1759905009359,0.84547405,4450.5,4449.9,2.543]
[1759905009895,0.84547405,4450.5,4449.9,4.79023534]
[1759905010060,0.84547405,4450.5,4449.9,2.543]
[1759905010261,0.84547405,4450.5,4449.9,4.79024061]
[1759905011088,0.84547405,4450.5,4449.9,2.543]
[1759905011694,0.84547405,4450.5,4449.9,4.79023051]
[1759905011861,0.84547405,4450.5,4449.9,2.543]
[1759905012389,0.84547405,4450.5,4449.9,2.24723675]
[1759905012580,0.84547405,4450.5,4450.0,2.543]
[1759905013287,2.24689309,4450.6,4450.0,2.543]
[1759905013487,2.60769309,4450.6,4450.0,2.543]
[1759905014192,0.112,4450.2,4449.5,16.74743021]
[1759905014404,0.112,4449.8,4449.1,0.112]
[1759905014692,0.112,4449.6,4449.4,2.543]
[1759905015581,0.112,4449.6,4449.1,2.24759777]
[1759905015773,0.112,4449.6,4449.4,2.543]
[1759905018498,0.112,4450.0,4449.7,2.24731106]
[1759905018809,0.112,4450.0,4449.8,4.79029112]
[1759905019779,0.112,4450.0,4449.8,2.543]
[1759905020688,0.112,4450.0,4449.9,2.24724151]
[1759905020920,0.112,4450.0,4449.8,5.25228611]
[1759905021214,0.112,4450.0,4449.8,4.79028611]
[1759905021805,0.112,4450.0,4449.8,2.543]
[1759905022004,0.112,4450.0,4449.8,2.544]
[1759905022504,0.112,4450.0,4449.9,0.462]
[1759905022678,0.002,4450.2,4450.0,2.24716935]
[1759905022880,0.002,4450.2,4450.1,4.79014051]
[1759905023198,0.002,4450.2,4450.1,2.543]
[1759905023728,0.002,4450.2,4450.1,5.25214051]
[1759905024643,0.002,4450.2,4450.1,4.79014051]
[1759905024839,0.002,4450.2,4450.1,5.25214051]
[1759905025245,0.002,4450.2,4450.1,19.75214051]
[1759905025548,0.002,4450.2,4450.1,19.86414051]
[1759905026670,0.002,4450.2,4450.1,21.78414051]
[1759905026826,0.002,4450.2,4450.1,22.41774051]
[1759905027165,0.012,4450.9,4450.8,2.24678709]
[1759905027166,1e-08,4450.9,4450.8,2.24678709]
[1759905027317,1e-08,4450.9,4450.8,7.9676091]
[1759905027653,1e-08,4450.9,4450.8,8.51914123]
[1759905027815,1e-08,4450.9,4450.8,23.01914123]
[1759905028258,1e-08,4450.9,4450.8,23.47016091]
[1759905028561,1e-08,4450.9,4450.8,23.01914123]
[1759905030752,1e-08,4450.9,4450.8,23.47604631]
[1759905030952,1e-08,4450.9,4450.8,29.18500045]
[1759905031154,0.002,4451.8,4451.2,5.40193933]
[1759905031352,0.002,4451.8,4451.2,8.05593933]
[1759905031555,0.002,4451.8,4451.2,8.51793933]
[1759905031757,0.002,4451.8,4451.2,26.17329347]
[1759905032125,0.002,4451.8,4451.5,2.24643378]
[1759905032421,0.002,4451.8,4451.6,2.24638332]
[1759905032622,0.002,4451.8,4451.7,4.81079618]
[1759905032824,0.002,4451.8,4451.7,19.75033286]
[1759905033844,1e-08,4451.9,4451.8,2.8798824]
[1759905034047,1e-08,4451.9,4451.8,8.43969936]
[1759905034249,1e-08,4452.5,4452.4,2.24597969]
[1759905034474,1e-08,4452.5,4452.4,24.38579362]
[1759905034672,1e-08,4452.5,4452.4,27.51868797]
[1759905034952,1e-08,4452.5,4452.4,24.82533383]
[1759905036229,1e-08,4452.5,4452.4,28.61428797]
[1759905036961,1e-08,4452.9,4452.8,2.24577793]
[1759905037172,1e-08,4452.9,4452.8,7.96558984]
[1759905037342,1e-08,4452.9,4452.8,8.40513207]
[1759905037957,1e-08,4452.9,4452.8,5.24977793]
[1759905038156,1e-08,4452.9,4452.8,7.80337793]
[1759905038360,1e-08,4452.9,4452.8,7.99337793]
[1759905038855,1e-08,4452.9,4452.8,22.30337793]
[1759905040841,1e-08,4452.9,4452.8,22.39334836]
[1759905041065,0.00200001,4452.9,4452.8,22.39334836]
[1759905041963,0.00200001,4452.9,4452.8,22.58334836]
[1759905042302,0.00200001,4452.9,4452.8,21.85877793]
[1759905043861,0.00200001,4452.9,4452.8,21.66877793]
[1759905044067,0.00200001,4452.9,4452.8,21.78077793]
[1759905044759,0.00200001,4452.9,4452.8,31.47872993]
[1759905048571,0.00200001,4452.9,4452.8,31.66872993]
[1759905048961,0.00200001,4452.9,4452.8,19.42977793]
[1759905049146,0.00200001,4452.9,4452.8,21.96977793]
[1759905049748,0.00200001,4452.9,4452.8,19.42977793]
[1759905050073,0.00200001,4452.9,4452.8,19.85977793]
[1759905051346,0.00200001,4452.9,4452.8,17.31977793]
[1759905051546,0.00200001,4452.9,4452.8,19.85977793]
[1759905055457,0.00200001,4452.9,4452.8,19.74777793]
[1759905055659,0.00200001,4452.9,4452.8,19.85977793]
[1759905057647,0.00200001,4452.9,4452.8,17.31977793]
[1759905057865,0.00200001,4452.9,4452.8,19.85977793]
[1759905060102,0.00200001,4452.9,4452.8,23.00951918]
[1759905061903,0.00200001,4452.9,4452.8,27.30951918]
[1759905062103,0.00200001,4452.9,4452.8,23.00951918]
[1759905062976,0.00200001,4452.9,4452.8,17.31977793]
[1759905063171,0.03200001,4452.9,4452.8,19.85977793]
[1759905065576,0.03200001,4452.9,4452.8,16.85777793]
[1759905065777,0.03200001,4452.9,4452.8,19.39777793]
[1759905066021,0.03200001,4452.9,4452.8,19.85147793]
[1759905066588,0.03200001,4452.9,4452.8,23.77686648]
[1759905067212,0.03200001,4452.9,4452.8,28.07686648]
[1759905068417,0.03200001,4452.9,4452.8,23.77686648]
[1759905068625,0.03200001,4452.9,4452.8,19.85147793]
[1759905068831,0.03200001,4452.9,4452.8,17.31147793]
[1759905069047,0.03200001,4452.9,4452.8,19.85147793]
[1759905070498,1e-08,4452.9,4452.8,20.37307793]
[1759905071011,1e-08,4452.9,4452.8,22.49504026]
[1759905071726,1e-08,4453.4,4453.3,2.87912578]
[1759905072015,1e-08,4453.4,4453.3,7.36158103]
[1759905072356,1e-08,4453.4,4453.3,17.19922578]
[1759905072532,1e-08,4453.4,4453.3,19.73922578]
[1759905073400,1e-08,4453.4,4453.3,20.18424487]
[1759905074016,1e-08,4453.4,4453.3,14.5]
[1759905074216,1e-08,4453.4,4452.8,0.08996233]
[1759905074217,1e-08,4453.4,4452.5,0.001]
[1759905074442,2.60628296,4453.4,4452.6,0.435]
[1759905074614,0.2608283,4453.3,4452.7,0.02245828]
[1759905074807,0.2608283,4453.3,4452.8,1.226]
[1759905075008,2.50635653,4453.3,4452.9,2.56245727]
[1759905075235,2.50635653,4453.3,4452.5,0.001]
[1759905075236,2.24559913,4453.2,4453.0,2.54]
[1759905075534,0.51146542,4453.2,4453.1,2.54]
[1759905075908,2.2455245,4453.4,4453.1,2.54]
[1759905076106,1e-08,4453.4,4453.1,2.54]
[1759905076506,2.24552864,4453.3,4453.1,2.54]
[1759905077249,2.24557621,4453.2,4453.1,2.54]
[1759905077451,0.3608,4453.2,4453.0,2.54]
[1759905077608,0.26062886,4453.1,4453.0,2.54]
[1759905077929,1e-08,4453.4,4453.0,2.54]
[1759905079869,2.24547577,4453.4,4453.0,2.54]
[1759905080037,2.60634333,4453.3,4453.0,2.54]
[1759905080237,2.2808,4453.3,4453.0,2.54]
[1759905080411,2.73363237,4453.3,4453.0,2.54]
[1759905080813,3.05920133,4453.3,4453.0,2.54]
[1759905081014,0.45283237,4453.3,4453.0,2.54]
[1759905081521,1e-08,4453.4,4453.1,2.54]
[1759905081720,1e-08,4453.4,4453.2,2.54]
[1759905081922,1e-08,4453.4,4453.3,2.54]
[1759905082635,2.60627537,4453.4,4453.3,2.54]
[1759905083022,0.36080001,4453.4,4453.3,2.54]
[1759905083221,0.85755665,4453.4,4453.3,2.54]
[1759905083427,0.49675665,4453.4,4453.3,2.54]
[1759905084631,1e-08,4453.4,4453.3,2.54]
[1759905085032,2.24547537,4453.4,4453.3,2.54]
[1759905085522,2.24547537,4453.4,4452.7,0.112]
[1759905085523,1e-08,4453.4,4452.7,0.112]
[1759905085847,2.24552578,4453.3,4452.8,2.54]
[1759905086218,2.24548476,4453.4,4452.8,2.54]
[1759905088461,1e-08,4453.4,4452.8,2.54]
[1759905088627,2.24552578,4453.3,4452.8,2.54]
[1759905088954,0.3608,4453.2,4452.9,2.54]
[1759905089118,2.24568862,4453.0,4452.9,2.54]
[1759905089324,2.60642947,4453.1,4452.9,2.54]
[1759905089527,2.35759489,4453.2,4452.9,2.54]
[1759905090217,0.112,4453.2,4452.9,2.54]
[1759905091451,0.112,4453.2,4452.9,2.56245727]
[1759905092365,0.112,4453.2,4452.9,2.54]
[1759905093381,1e-08,4453.4,4453.0,0.45825677]
[1759905093725,1e-08,4453.4,4452.9,2.54]
[1759905094126,1e-08,4453.4,4453.0,0.02245677]
[1759905094369,1e-08,4453.4,4452.9,2.54]
[1759905095427,1e-08,4453.4,4452.9,4.78570615]
[1759905095726,1e-08,4453.4,4452.9,5.22150615]
[1759905096256,1e-08,4453.4,4452.8,0.001]
[1759905096458,1e-08,4453.4,4452.9,2.54]
[1759905096959,1e-08,4453.4,4452.9,4.78572436]
[1759905097254,1e-08,4453.4,4453.0,2.24566254]
[1759905097833,1e-08,4453.4,4452.9,5.22151474]
[1759905098359,1e-08,4453.4,4453.0,0.02245677]
[1759905098527,1e-08,4453.4,4453.0,2.70388799]
[1759905098757,1e-08,4453.4,4453.0,0.45825677]
[1759905098963,1e-08,4453.4,4452.9,2.54]
[1759905099583,1e-08,4453.4,4452.9,4.78571978]
[1759905099789,1e-08,4453.4,4453.0,2.245668]
[1759905099991,1e-08,4453.4,4453.0,2.24567707]
[1759905100787,1e-08,4453.4,4452.9,19.72151568]
[1759905100984,1e-08,4453.4,4452.9,17.04]
[1759905101462,1e-08,4453.4,4452.9,19.75371627]
[1759905101657,1e-08,4453.4,4452.9,17.04]
[1759905101881,1e-08,4453.4,4453.1,2.24562664]
[1759905102063,1e-08,4453.4,4453.3,2.24552578]
[1759905102258,1e-08,4453.4,4453.3,2.37998103]
[1759905102467,1e-08,4453.4,4453.3,2.84798103]
[1759905103671,1e-08,4453.4,4453.3,4.76798103]
[1759905103991,1e-08,4453.4,4453.3,4.74552578]
[1759905104372,1e-08,4453.4,4453.3,19.24552578]
[1759905104898,1e-08,4453.4,4453.3,19.87912578]
[1759905106208,0.07440001,4453.4,4453.3,19.87912578]
[1759905107074,0.07440001,4453.4,4453.3,19.75252578]
[1759905110197,0.07440001,4453.4,4453.3,17.21352578]
[1759905110389,0.07440001,4453.4,4453.3,19.75252578]
[1759905114409,0.07440001,4453.4,4453.3,17.21352578]
[1759905114597,0.07440001,4453.4,4453.3,19.75252578]
[1759905115399,0.07440001,4453.4,4453.3,17.21352578]
[1759905115580,0.07440001,4453.4,4453.3,19.75252578]
[1759905115780,0.07440001,4453.4,4453.3,17.21352578]
[1759905116007,0.07440001,4453.4,4453.3,19.75252578]
[1759905116411,0.07440001,4453.4,4453.3,17.21352578]
[1759905116795,0.07440001,4453.4,4453.3,19.75252578]
[1759905117202,0.07440001,4453.4,4453.3,19.86452578]
[1759905117495,0.07440001,4453.4,4453.3,17.32552578]
[1759905117703,0.07440001,4453.4,4453.3,19.86452578]
[1759905118496,0.07440001,4453.4,4453.3,17.32552578]
[1759905118815,0.07440001,4453.4,4453.3,19.86452578]
[1759905119513,0.07440001,4453.4,4453.3,17.32552578]
[1759905119714,0.07440001,4453.4,4453.3,19.86452578]
[1759905120512,0.07440001,4453.4,4453.3,14.5]
[1759905120699,0.07440001,4453.4,4453.3,2.539]
[1759905121222,0.07440001,4453.4,4453.3,4.78452578]
[1759905121395,0.07440001,4453.4,4453.3,5.24042578]
[1759905122981,0.07440001,4453.4,4453.3,7.16042578]
[1759905123813,0.07440001,4453.4,4453.3,5.24042578]
[1759905124003,0.07440001,4453.4,4452.8,0.001]
[1759905124197,0.07440001,4453.4,4452.9,2.9949]
[1759905124514,0.07440001,4453.4,4453.3,2.24552578]
[1759905124822,0.07440001,4453.4,4453.3,4.78452578]
[1759905125108,0.07440001,4453.4,4453.3,19.74042578]
[1759905126221,0.07440001,4453.4,4453.3,19.74142578]
[1759905127284,0.2100622,4455.6,4453.5,0.6336]
[1759905127479,0.01,4455.9,4454.2,2.24507206]
[1759905127717,0.01,4455.9,4454.2,4.80652278]
[1759905127912,0.01,4455.9,4454.2,4.78407206]
[1759905128117,0.01,4455.9,4454.2,20.1803222]
[1759905128512,0.01,4455.9,4454.2,19.73997206]
[1759905130515,0.112,4455.8,4454.2,19.85197206]
[1759905131627,0.112,4455.8,4454.2,20.30942623]
[1759905131826,2.35627143,4455.8,4454.2,20.30942623]
[1759905132126,2.35627143,4455.8,4454.2,20.30842623]
[1759905132333,0.112,4455.8,4454.2,20.30842623]
[1759905133027,0.112,4455.8,4454.2,17.77042623]
[1759905133329,0.112,4455.8,4454.2,20.30842623]
[1759905133525,0.112,4455.8,4454.2,17.77042623]
[1759905133726,0.112,4455.8,4454.2,20.30842623]
[1759905134298,0.112,4455.8,4454.2,17.77042623]
[1759905134794,0.112,4455.8,4454.2,20.30842623]
[1759905135802,0.112,4455.8,4454.2,23.45589888]
[1759905136001,0.112,4455.8,4454.2,24.08949888]
[1759905136870,0.112,4455.8,4454.2,24.17944321]
[1759905140772,0.112,4455.8,4454.2,17.86037056]
[1759905141055,3.15747265,4454.9,4454.2,14.612]
[1759905141228,3.14747265,4454.6,4454.2,4.78307206]
[1759905141435,0.112,4454.8,4454.2,2.538]
[1759905141755,0.112,4454.8,4454.2,5.25842278]
[1759905141976,0.112,4454.8,4454.2,5.34797206]
[1759905142323,0.112,4454.8,4454.2,4.89507206]
[1759905142833,0.114,4454.8,4454.2,4.89507206]
[1759905144257,0.114,4454.8,4453.8,0.4529]
[1759905144258,0.3628,4454.8,4453.8,0.4529]
[1759905144445,0.112,4454.6,4454.0,2.24517287]
[1759905144646,0.112,4454.6,4454.1,2.56045122]
[1759905144963,0.112,4454.6,4454.1,4.80556548]
[1759905145147,0.112,4454.6,4454.1,4.78311426]
[1759905145627,0.112,4454.6,4454.1,2.538]
[1759905145831,0.112,4454.6,4454.1,2.56045122]
[1759905146044,0.112,4454.6,4454.1,4.80557138]
[1759905146227,0.112,4454.6,4454.1,4.78312016]
[1759905146433,0.112,4454.6,4454.2,0.02245072]
[1759905148970,0.3628,4454.8,4453.3,0.4539]
[1759905148971,2.24507465,4454.2,4454.0,2.211]
[1759905149272,1.92,4454.0,4453.3,0.001]
[1759905149568,1.92,4454.0,4453.4,2.538]
[1759905149762,2.24528943,4453.8,4453.4,2.538]
[1759905149960,0.3608,4453.7,4453.4,2.538]
[1759905150136,0.3608,4453.6,4453.4,2.538]
[1759905150547,0.3608,4453.5,4453.3,0.001]
[1759905150746,0.3608,4453.5,4453.4,2.538]
[1759905151578,0.41652894,4453.7,4453.4,2.538]
[1759905151777,0.77732894,4453.7,4453.4,2.538]
[1759905151973,0.66306365,4453.6,4453.4,2.538]
[1759905153940,0.3608,4453.5,4453.3,0.001]
[1759905154143,4.16547536,4453.4,4453.3,0.001]
[1759905154593,2.60627536,4453.4,4453.3,0.001]
[1759905154763,37.90759295,4453.4,4453.3,0.001]
[1759905154941,40.24938182,4453.4,4453.3,0.001]
[1759905155144,40.24938182,4453.4,4452.8,0.001]
[1759905155145,4.79912578,4453.3,4452.8,0.001]
[1759905155346,44.49737203,4452.9,4452.8,0.001]
[1759905155572,34.79947881,4452.6,4452.4,0.001]
[1759905155777,32.24608058,4452.2,4452.1,0.01]
[1759905155955,46.80871104,4452.2,4452.1,0.01]
[1759905156276,4.79973103,4452.1,4451.6,0.001]
[1759905156577,34.16633286,4451.7,4451.6,0.001]
[1759905156764,36.91405045,4451.7,4451.6,0.001]
[1759905156965,37.90845045,4451.7,4451.6,0.001]
[1759905157166,40.642172,4451.7,4450.1,0.01]
[1759905157365,13.86462972,4451.2,4450.1,0.01]
[1759905157770,14.22542972,4451.2,4450.1,0.01]
[1759905158079,14.31549901,4451.2,4450.1,0.01]
[1759905158278,16.85349901,4451.2,4450.1,0.01]
[1759905158450,18.02307462,4451.2,4450.1,0.01]
[1759905159791,18.02307462,4451.2,4451.1,0.011]
[1759905160374,15.75787462,4451.2,4451.1,0.011]
[1759905160586,1.53037561,4451.2,4451.1,0.011]
[1759905160794,2.60738519,4451.2,4451.1,0.011]
[1759905161480,4.52738519,4451.2,4451.1,0.011]
[1759905170668,2.2808,4451.2,4451.1,0.011]
[1759905170991,4.52738519,4451.2,4451.1,0.011]
[1759905173984,7.70098519,4451.2,4451.1,0.011]
[1759905174318,39.69573318,4451.2,4451.1,0.011]
[1759905174895,39.78579943,4451.2,4451.1,0.011]
[1759905175913,39.99435119,4451.2,4451.1,0.011]
[1759905176095,39.99435336,4451.2,4451.1,0.011]
[1759905177312,35.00035336,4451.2,4451.1,0.011]
[1759905177714,15.83735336,4451.2,4451.1,0.011]
[1759905178501,16.31911042,4451.2,4451.1,0.011]
[1759905179913,22.6301579,4451.2,4451.1,0.011]
[1759905180113,2.88043757,4450.7,4450.6,0.001]
[1759905180421,2.88084151,4449.9,4449.8,0.001]
[1759905180591,44.34329751,4449.9,4449.8,0.001]
[1759905180797,2.5536,4449.4,4449.3,0.001]
[1759905181006,8.94053226,4449.4,4449.3,0.001]
[1759905181202,12.66662388,4449.4,4449.3,0.001]
[1759905181818,4.0900061,4449.4,4449.3,0.001]
[1759905182018,4.73664837,4449.4,4449.3,0.001]
[1759905182325,5.2195641,4449.4,4449.3,0.001]
[1759905182928,8.3931641,4449.4,4449.3,0.001]
[1759905183230,38.99624353,4449.4,4449.3,0.001]
[1759905183419,39.19727001,4449.4,4449.3,0.001]
[1759905183614,41.44904046,4449.4,4449.3,0.001]
[1759905184323,16.12604046,4449.4,4449.3,0.001]
[1759905184909,16.21614485,4449.4,4449.3,0.001]
[1759905185104,11.53914485,4449.4,4449.3,0.001]
[1759905185433,10.64493455,4449.4,4449.3,0.001]
[1759905188421,11.03926213,4449.4,4449.3,0.001]
[1759905188632,11.24886832,4449.4,4449.3,0.001]
[1759905189138,10.61526832,4449.4,4449.3,0.001]
[1759905189351,5.22409237,4449.4,4449.3,0.001]
[1759905189519,0.69252192,4449.4,4449.3,0.001]
[1759905189727,0.20960619,4449.4,4449.3,0.001]
[1759905190017,0.20960619,4449.4,4449.3,2.24854455]
[1759905190018,0.112,4449.4,4449.3,2.24854455]
[1759905190328,0.112,4449.8,4449.3,0.001]
[1759905190529,0.112,4449.8,4449.4,2.24749404]
[1759905190840,0.112,4449.8,4449.3,0.02347544]
[1759905191056,0.112,4449.8,4449.3,2.24852647]
[1759905193138,0.112,4449.8,4449.3,0.001]
[1759905193441,2.24749404,4449.4,4449.3,0.001]
[1759905193651,4.16749404,4449.4,4449.3,0.001]
[1759905193849,2.81690031,4449.4,4449.3,0.001]
[1759905194018,2.60729404,4449.4,4449.3,0.001]
[1759905195562,7.7599812,4449.4,4449.3,0.001]
[1759905195846,8.76071896,4449.4,4449.3,0.001]
[1759905199046,2.97248716,4449.4,4449.3,0.001]
[1759905199250,2.61268716,4449.4,4449.3,0.001]
[1759905199422,0.2096386,4449.4,4449.3,0.001]
[1759905199617,0.3598,4449.4,4449.3,0.001]
[1759905200237,0.48330327,4449.6,4449.3,0.001]
[1759905200435,0.3598,4449.4,4449.3,0.001]
[1759905202148,0.71906939,4449.6,4449.3,0.001]
[1759905202149,2.96646309,4449.6,4449.3,0.001]
[1759905202351,0.3598,4449.4,4449.3,0.001]
[1759905202853,2.60729404,4449.4,4449.3,0.001]
[1759905203240,0.3598,4449.4,4449.3,0.001]
[1759905203422,2.60729404,4449.4,4449.3,0.001]
[1759905203625,5.26193454,4449.4,4449.3,0.001]
[1759905203847,8.28584326,4449.4,4449.3,0.001]
[1759905209967,8.91944326,4449.4,4449.3,0.001]
[1759905215573,3.49834922,4449.4,4449.3,0.001]
[1759905215769,2.13000416,4449.4,4449.3,0.001]
[1759905215958,0.21000416,4449.4,4449.3,0.001]
[1759905216159,2.24739649,4449.6,4449.3,0.001]
[1759905216368,0.21047562,4449.5,4449.3,0.001]
[1759905216595,2.60725035,4449.5,4449.3,0.001]
[1759905216799,0.3598,4449.5,4449.3,0.001]
[1759905217089,2.2798,4449.5,4449.3,0.001]
[1759905217678,0.3598,4449.4,4449.3,0.001]
[1759905217882,4.52729404,4449.4,4449.3,0.001]
[1759905219992,7.91140743,4449.4,4449.3,0.001]
[1759905220298,8.39646444,4449.4,4449.3,0.001]
[1759905221090,4.86306444,4449.4,4449.3,0.001]
[1759905221256,2.6155704,4449.4,4449.3,0.001]
[1759905221457,2.13051339,4449.4,4449.3,0.001]
[1759905222976,0.002,4449.8,4449.3,0.001]
[1759905223177,0.002,4449.8,4449.4,0.4634]
[1759905223385,0.002,4449.8,4449.6,2.24738467]
[1759905223686,0.002,4449.8,4449.7,0.02247342]
[1759905223992,0.002,4449.8,4449.5,14.5]
[1759905223993,0.002,4449.8,4449.6,0.02247393]
[1759905224302,0.002,4449.8,4449.7,2.24734251]
[1759905224656,0.002,4449.8,4449.7,2.71074251]
[1759905226559,0.002,4449.8,4449.7,5.25074251]
[1759905227594,0.002,4449.8,4449.7,19.75074251]
[1759905230138,0.002,4449.8,4449.7,19.86274251]
[1759905233293,0.002,4449.8,4449.7,22.41634251]
[1759905236710,1e-08,4450.3,4450.2,2.24709001]
[1759905236913,1e-08,4450.3,4450.2,7.36216091]
[1759905237098,1e-08,4450.3,4450.2,7.88909001]
[1759905237305,1e-08,4450.3,4450.2,22.38909001]
[1759905238282,1e-08,4450.3,4450.2,22.57909001]
[1759905239403,1e-08,4450.3,4450.2,32.04523861]
[1759905239804,1e-08,4450.3,4450.2,31.85523861]